fUSD/lending_fUSD_20240629
["ID","MTS","AMOUNT","RATE_DAILY","PERIOD"]
[330617345,1719627041864,-500.0,0.00018255,2]
[330617346,1719627041873,-411.0,0.00018336,2]
[330617347,1719627041882,-317.35018931,0.00018395,2]
[330617348,1719627041891,-167.0,0.00018444,2]
[330617349,1719627041900,-226.80456878,0.00018532,2]
[330617350,1719627041911,-11755.0,0.000186,5]
[330617351,1719627041920,-10000.0,0.00018621,2]
[330617352,1719627041928,-369.045112,0.0001863,2]
[330617353,1719627041938,-239.69,0.00018632,2]
[330617354,1719627041947,-326.32719448,0.00018747,2]
[330617355,1719627041957,-31883.36948108,0.00018804,2]
[330617356,1719627041967,-1628.39165564,0.00018847,2]
[330617357,1719627041976,-7777.3305223,0.00018847,2]
[330617358,1719627041986,-153.25,0.000189,2]
[330617359,1719627041996,-153.25,0.000189,2]
[330617360,1719627042005,-153.25,0.000189,2]
[330617361,1719627042014,-153.25,0.000189,2]
[330617362,1719627042024,-153.25,0.000189,2]
[330617363,1719627042033,-153.25,0.000189,2]
[330617364,1719627042043,-153.25,0.000189,2]
[330617365,1719627042052,-153.25,0.000189,2]
[330617366,1719627042062,-156.98542982,0.00018979,2]
[330617367,1719627042072,-656.0,0.00019,3]
[330617368,1719627042081,-156.17715049,0.00019,2]
[330617369,1719627042091,-155.46325115,0.00019,2]
[330617370,1719627042100,-1975.0,0.00019,3]
[330617371,1719627042110,-956.52966,0.00019,2]
[330617372,1719627042119,-153.25,0.00019168,2]
[330617373,1719627042129,-500.0,0.00019178,2]
[330617374,1719627042138,-499.3949657,0.00019178,2]
[330617375,1719627042148,-450.15753447,0.00019178,2]
[330617376,1719627042159,-500.0,0.00019178,2]
[330617377,1719627042168,-500.0,0.00019178,2]
[330617378,1719627042178,-500.0,0.00019178,2]
[330617379,1719627042187,-380.55779675,0.00019178,2]
[330617380,1719627042197,-610.36708573,0.00019178,2]
[330617381,1719627042207,-227.42638157,0.00019178,2]
[330617382,1719627042222,-500.0,0.00019178,2]
[330617383,1719627042232,-500.0,0.00019178,2]
[330617384,1719627042241,-500.0,0.00019178,2]
[330617385,1719627042251,-500.0,0.00019178,2]
[330617386,1719627042263,-500.0,0.00019178,2]
[330617387,1719627042272,-398.63253388,0.00019178,2]
[330617388,1719627042282,-500.0,0.00019178,2]
[330617389,1719627042292,-310.81777578,0.00019178,2]
[330617390,1719627042301,-500.0,0.00019178,2]
[330617391,1719627042311,-500.0,0.00019178,2]
[330617392,1719627042320,-500.0,0.00019178,2]
[330617393,1719627042329,-500.0,0.00019178,2]
[330617394,1719627042338,-500.0,0.00019178,2]
[330617395,1719627042347,-180.9893482,0.00019178,2]
[330617396,1719627042357,-500.0,0.00019178,2]
[330617397,1719627042366,-500.0,0.00019178,2]
[330617398,1719627042375,-500.0,0.00019178,2]
[330617399,1719627042385,-500.0,0.00019178,2]
[330617400,1719627042394,-500.0,0.00019178,2]
[330617401,1719627042403,-322.03390797,0.00019178,2]
[330617402,1719627042413,-500.0,0.00019178,2]
[330617403,1719627042422,-500.0,0.00019178,2]
[330617404,1719627042432,-500.0,0.00019178,2]
[330617405,1719627042441,-500.0,0.00019178,2]
[330617406,1719627042450,-500.0,0.00019178,2]
[330617407,1719627042459,-500.0,0.00019178,2]
[330617408,1719627042468,-500.0,0.00019178,2]
[330617409,1719627042478,-500.0,0.00019178,2]
[330617410,1719627042488,-500.0,0.00019178,2]
[330617411,1719627042499,-500.0,0.00019178,2]
[330617412,1719627042508,-500.0,0.00019178,2]
[330617413,1719627042518,-500.0,0.00019178,2]
[330617414,1719627042527,-500.0,0.00019178,2]
[330617415,1719627042537,-520.15148904,0.00019178,2]
[330617416,1719627042547,-500.0,0.00019178,2]
[330617417,1719627042557,-250.0,0.00019178,2]
[330617418,1719627042567,-500.0,0.00019178,2]
[330617419,1719627042576,-500.0,0.00019178,2]
[330617420,1719627042586,-500.0,0.00019178,2]
[330617421,1719627042595,-500.0,0.00019178,2]
[330617422,1719627042605,-500.0,0.00019178,2]
[330617423,1719627042615,-500.0,0.00019178,2]
[330617424,1719627042624,-500.0,0.00019178,2]
[330617425,1719627042634,-500.0,0.00019178,2]
[330617426,1719627042644,-500.0,0.00019178,2]
[330617428,1719627042653,-638.02208614,0.00019178,2]
[330617430,1719627042665,-500.0,0.00019178,2]
[330617431,1719627042674,-500.0,0.00019178,2]
[330617432,1719627042684,-591.97518708,0.00019178,2]
[330617433,1719627042694,-500.0,0.00019178,2]
[330617434,1719627042704,-500.0,0.00019178,2]
[330617436,1719627042714,-500.0,0.00019178,2]
[330617438,1719627042724,-500.0,0.00019178,2]
[330617439,1719627042734,-500.0,0.00019178,2]
[330617440,1719627042743,-500.0,0.00019178,2]
[330617441,1719627042753,-500.0,0.00019178,2]
[330617442,1719627042762,-500.0,0.00019178,2]
[330617443,1719627042773,-500.0,0.00019178,2]
[330617444,1719627042786,-500.0,0.00019178,2]
[330617445,1719627042795,-450.25,0.00019178,2]
[330617446,1719627042806,-311.19389402,0.00019178,2]
[330617447,1719627042818,-200.73228849,0.00019178,2]
[330617448,1719627042827,-500.0,0.00019178,2]
[330617449,1719627042838,-500.0,0.00019178,2]
[330617450,1719627042849,-500.0,0.00019178,2]
[330617451,1719627042858,-500.0,0.00019178,2]
[330617452,1719627042868,-500.0,0.00019178,2]
[330617453,1719627042878,-500.0,0.00019178,2]
[330617454,1719627042888,-279.27447557,0.00019178,2]
[330617455,1719627042898,-500.0,0.00019178,2]
[330617456,1719627042909,-500.0,0.00019178,2]
[330617457,1719627042918,-286.77784951,0.00019178,2]
[330617459,1719627042928,-500.0,0.00019178,2]
[330617461,1719627042938,-500.0,0.00019178,2]
[330617463,1719627042948,-500.0,0.00019178,2]
[330617465,1719627042957,-500.0,0.00019178,2]
[330617466,1719627042966,-500.0,0.00019178,2]
[330617467,1719627042975,-500.0,0.00019178,2]
[330617468,1719627042984,-500.0,0.00019178,2]
[330617469,1719627042993,-500.0,0.00019178,2]
[330617470,1719627043003,-250.0,0.00019178,2]
[330617471,1719627043012,-500.0,0.00019178,2]
[330617472,1719627043021,-500.0,0.00019178,2]
[330617473,1719627043030,-500.0,0.00019178,2]
[330617474,1719627043039,-500.0,0.00019178,2]
[330617475,1719627043048,-500.0,0.00019178,2]
[330617476,1719627043058,-500.0,0.00019178,2]
[330617477,1719627043067,-500.0,0.00019178,2]
[330617478,1719627043077,-500.0,0.00019178,2]
[330617479,1719627043086,-500.0,0.00019178,2]
[330617480,1719627043096,-500.0,0.00019178,2]
[330617481,1719627043105,-500.0,0.00019178,2]
[330617482,1719627043115,-500.0,0.00019178,2]
[330617483,1719627043124,-500.0,0.00019178,2]
[330617484,1719627043133,-500.0,0.00019178,2]
[330617485,1719627043143,-500.0,0.00019178,2]
[330617486,1719627043153,-500.0,0.00019178,2]
[330617487,1719627043165,-500.0,0.00019178,2]
[330617488,1719627043174,-500.0,0.00019178,2]
[330617489,1719627043183,-500.0,0.00019178,2]
[330617490,1719627043191,-500.0,0.00019178,2]
[330617491,1719627043201,-500.0,0.00019178,2]
[330617492,1719627043215,-500.0,0.00019178,2]
[330617493,1719627043227,-500.0,0.00019178,2]
[330617494,1719627043237,-500.0,0.00019178,2]
[330617495,1719627043246,-500.0,0.00019178,2]
[330617496,1719627043256,-500.0,0.00019178,2]
[330617497,1719627043266,-500.0,0.00019178,2]
[330617498,1719627043275,-500.0,0.00019178,2]
[330617499,1719627043285,-500.0,0.00019178,2]
[330617500,1719627043295,-500.0,0.00019178,2]
[330617501,1719627043305,-500.0,0.00019178,2]
[330617502,1719627043314,-500.0,0.00019178,2]
[330617503,1719627043323,-500.0,0.00019178,2]
[330617504,1719627043332,-500.0,0.00019178,2]
[330617505,1719627043342,-500.0,0.00019178,2]
[330617506,1719627043352,-500.0,0.00019178,2]
[330617507,1719627043362,-357.33974376,0.00019178,2]
[330617508,1719627043372,-500.0,0.00019178,2]
[330617509,1719627043382,-500.0,0.00019178,2]
[330617510,1719627043391,-500.0,0.00019178,2]
[330617511,1719627043400,-307.78714384,0.00019178,2]
[330617512,1719627043412,-500.0,0.00019178,2]
[330617513,1719627043422,-500.0,0.00019178,2]
[330617514,1719627043431,-500.0,0.00019178,2]
[330617515,1719627043440,-500.0,0.00019178,2]
[330617516,1719627043450,-500.0,0.00019178,2]
[330617517,1719627043459,-500.0,0.00019178,2]
[330617518,1719627043469,-500.0,0.00019178,2]
[330617519,1719627043479,-500.0,0.00019178,2]
[330617520,1719627043489,-500.0,0.00019178,2]
[330617521,1719627043499,-500.0,0.00019178,2]
[330617522,1719627043509,-500.0,0.00019178,2]
[330617523,1719627043520,-500.0,0.00019178,2]
[330617524,1719627043530,-500.0,0.00019178,2]
[330617526,1719627043539,-500.0,0.00019178,2]
[330617528,1719627043548,-457.78895593,0.00019178,2]
[330617529,1719627043560,-500.0,0.00019178,2]
[330617530,1719627043569,-500.0,0.00019178,2]
[330617531,1719627043579,-500.0,0.00019178,2]
[330617532,1719627043588,-500.0,0.00019178,2]
[330617533,1719627043599,-500.0,0.00019178,2]
[330617534,1719627043610,-350.0,0.00019178,2]
[330617535,1719627043620,-170.73323935,0.00019178,2]
[330617536,1719627043629,-499.99999999,0.00019178,2]
[330617537,1719627043639,-735.69666305,0.00019178,2]
[330617538,1719627043648,-735.69666305,0.00019178,2]
[330617539,1719627043661,-735.69666305,0.00019178,2]
[330617540,1719627043670,-735.69666305,0.00019178,2]
[330617541,1719627043680,-735.69666305,0.00019178,2]
[330617542,1719627043689,-735.69666305,0.00019178,2]
[330617543,1719627043699,-735.69666305,0.00019178,2]
[330617544,1719627043708,-735.69666305,0.00019178,2]
[330617545,1719627043718,-735.69666305,0.00019178,2]
[330617546,1719627043727,-735.69666305,0.00019178,2]
[330617547,1719627043739,-735.69666305,0.00019178,2]
[330617548,1719627043749,-735.69666305,0.00019178,2]
[330617549,1719627043763,-735.69666305,0.00019178,2]
[330617550,1719627043774,-735.69666305,0.00019178,2]
[330617551,1719627043785,-735.69666305,0.00019178,2]
[330617552,1719627043796,-735.69666305,0.00019178,2]
[330617553,1719627043806,-735.69666305,0.00019178,2]
[330617554,1719627043817,-735.69666305,0.00019178,2]
[330617555,1719627043827,-735.69666305,0.00019178,2]
[330617556,1719627043838,-735.69666305,0.00019178,2]
[330617557,1719627043850,-735.69666305,0.00019178,2]
[330617558,1719627043860,-735.69666305,0.00019178,2]
[330617559,1719627043870,-735.69666305,0.00019178,2]
[330617560,1719627043880,-735.69666305,0.00019178,2]
[330617561,1719627043891,-735.69666305,0.00019178,2]
[330617562,1719627043902,-735.69666305,0.00019178,2]
[330617563,1719627043913,-735.69666305,0.00019178,2]
[330617564,1719627043923,-735.69666305,0.00019178,2]
[330617565,1719627043932,-735.69666305,0.00019178,2]
[330617566,1719627043942,-735.69666305,0.00019178,2]
[330617567,1719627043951,-735.69666305,0.00019178,2]
[330617568,1719627043961,-735.69666305,0.00019178,2]
[330617569,1719627043971,-499.99999999,0.00019178,2]
[330617570,1719627043980,-33825.68991571,0.00019178,2]
[330617571,1719627043990,-200.0,0.00019178,2]
[330617572,1719627044000,-200.0,0.00019178,2]
[330617573,1719627044010,-200.0,0.00019178,2]
[330617574,1719627044020,-200.0,0.00019178,2]
[330617575,1719627044030,-200.0,0.00019178,2]
[330617576,1719627044041,-200.0,0.00019178,2]
[330617577,1719627044050,-182.0,0.00019178,2]
[330617578,1719627044060,-250.0,0.00019178,2]
[330617579,1719627044070,-215.03,0.00019178,2]
[330617580,1719627044080,-55000.0,0.00019178,2]
[330617581,1719627044089,-3153.08,0.00019178,2]
[330617582,1719627044099,-438.59784472,0.00019229,2]
[330617583,1719627044109,-510.51935651,0.00019229,2]
[330617584,1719627044119,-165.67207765,0.00019242,2]
[330617585,1719627044128,-381.2615548,0.0001925,2]
[330617586,1719627044138,-150.0,0.00019342,2]
[330617587,1719627044148,-334.89192372,0.0001935,2]
[330617588,1719627044157,-166.221,0.00019354,2]
[330617589,1719627044167,-1278.259,0.00019354,2]
[330617590,1719627044176,-1666.869,0.00019354,2]
[330617591,1719627044186,-361.801,0.00019354,2]
[330617592,1719627044196,-1830.0,0.00019354,2]
[330617593,1719627044206,-447.447,0.00019354,2]
[330617594,1719627044220,-820.232,0.00019354,2]
[330617595,1719627044229,-451.146,0.00019354,2]
[330617596,1719627044239,-622.944,0.00019354,2]
[330617597,1719627044248,-167.004,0.00019354,2]
[330617598,1719627044259,-150.808,0.00019354,2]
[330617599,1719627044269,-1315.83,0.00019354,2]
[330617600,1719627044278,-2429.802,0.00019354,2]
[330617601,1719627044290,-1998.473,0.00019354,2]
[330617602,1719627044300,-3223.486,0.00019354,2]
[330617603,1719627044309,-567.542,0.00019354,2]
[330617604,1719627044319,-369.045112,0.00019452,2]
[330617605,1719627044328,-31883.36948108,0.00019621,2]
[330617606,1719627044338,-150.0,0.00019688,2]
[330617607,1719627044347,-1000.0,0.00019742,2]
[330617608,1719627044356,-150.82,0.00019793,2]
[330617609,1719627044365,-150.83,0.00019793,2]
[330617610,1719627044377,-150.46,0.00019793,2]
[330617611,1719627044386,-150.8,0.00019793,2]
[330617612,1719627044396,-150.57,0.00019793,2]
[330617613,1719627044407,-150.0,0.00019793,2]
[330617614,1719627044416,-150.0,0.00019793,2]
[330617615,1719627044425,-150.0,0.00019793,2]
[330617616,1719627044435,-150.0,0.00019793,2]
[330617617,1719627044444,-150.0,0.00019793,2]
[330617618,1719627044453,-150.0,0.00019793,2]
[330617619,1719627044463,-150.0,0.00019793,2]
[330617620,1719627044473,-150.0,0.00019793,2]
[330617621,1719627044483,-150.0,0.00019793,2]
[330617622,1719627044492,-150.0,0.00019793,2]
[330617623,1719627044502,-150.0,0.00019793,2]
[330617624,1719627044511,-150.0,0.00019793,2]
[330617625,1719627044522,-150.98,0.00019793,2]
[330617626,1719627044532,-150.0,0.00019793,2]
[330617627,1719627044541,-150.0,0.00019793,2]
[330617628,1719627044551,-150.0,0.00019793,2]
[330617629,1719627044561,-150.0,0.00019793,2]
[330617630,1719627044571,-150.0,0.00019793,2]
[330617631,1719627044580,-150.0,0.00019793,2]
[330617632,1719627044590,-164.73,0.00019793,2]
[330617633,1719627044599,-150.0,0.00019793,2]
[330617634,1719627044609,-151.05,0.00019793,2]
[330617635,1719627044624,-164.73,0.00019793,2]
[330617636,1719627044634,-150.0,0.00019793,2]
[330617637,1719627044644,-407.46,0.00019793,2]
[330617638,1719627044657,-150.0,0.00019793,2]
[330617639,1719627044666,-150.0,0.00019793,2]
[330617640,1719627044676,-164.73,0.00019793,2]
[330617641,1719627044685,-150.0,0.00019793,2]
[330617642,1719627044695,-423.99,0.00019793,2]
[330617643,1719627044704,-164.73,0.00019793,2]
[330617644,1719627044714,-150.0,0.00019793,2]
[330617645,1719627044725,-150.0,0.00019793,2]
[330617646,1719627044735,-150.0,0.00019805,2]
[330617647,1719627044746,-150.0,0.00019826,2]
[330617648,1719627044756,-1628.39165564,0.00019836,2]
[330617649,1719627044766,-7777.3305223,0.00019836,2]
[330617650,1719627044776,-749178.50313999,0.0001988,2]
[330617651,1719627044786,-11510.23926051,0.000199,2]
[330617652,1719627044796,-11510.2392605,0.000199,2]
[330617653,1719627044806,-11510.2392605,0.000199,2]
[330617654,1719627044816,-150.0,0.00019935,2]
[330617655,1719627044825,-371.73348816,0.0001999,2]
[330617656,1719627044835,-150.0,0.00019992,2]
[330617657,1719627044845,-327.07160495,0.0002,2]
[330617658,1719627044855,-447.98005647,0.0002,2]
[330617659,1719627044865,-292.86889594,0.0002,2]
[330617660,1719627044875,-3762.1640337,0.0002,2]
[330617661,1719627044886,-6653.0,0.0002,2]
[330617662,1719627044896,-9021.49173829,0.0002,2]
[330617663,1719627044906,-6029.13200208,0.0002,2]
[330617664,1719627044917,-156.54908105,0.0002,2]
[330617665,1719627044929,-306.82214057,0.0002,2]
[330617666,1719627044939,-304.79418058,0.0002,2]
[330617667,1719627044950,-9544.05756845,0.0002,2]
[330617668,1719627044960,-340.85945515,0.0002,2]
[330617669,1719627044970,-1192.47,0.0002,2]
[330617670,1719627044980,-279.74689303,0.0002,2]
[330617671,1719627044990,-1000.0,0.0002,2]
[330617672,1719627045000,-150.0,0.00020076,2]
[330617673,1719627045010,-150.0,0.00020081,2]
[330617674,1719627045020,-716.21074661,0.00020102,2]
[330617675,1719627045030,-150.0,0.0002011,2]
[330617676,1719627045039,-150.0,0.0002012,2]
[330617677,1719627045050,-150.0,0.00020144,2]
[330617678,1719627045059,-150.0,0.0002018,2]
[330617679,1719627045071,-150.0,0.00020191,2]
[330617680,1719627045081,-150.0,0.00020209,2]
[330617681,1719627045091,-150.0,0.00020237,2]
[330617682,1719627045101,-369.045112,0.00020274,2]
[330617683,1719627045111,-228.60348491,0.00020287,2]
[330617684,1719627045120,-239.69,0.00020326,2]
[330617685,1719627045130,-150.0,0.00020351,2]
[330617686,1719627045139,-150.0,0.00020354,2]
[330617687,1719627045148,-150.0,0.00020384,2]
[330617688,1719627045161,-150.0,0.00020385,2]
[330617689,1719627045170,-150.0,0.00020388,2]
[330617690,1719627045180,-31883.36948108,0.00020438,2]
[330617691,1719627045189,-150.0,0.00020455,2]
[330617692,1719627045198,-352.12,0.00020493,2]
[330617693,1719627045207,-150.0,0.00020519,2]
[330617694,1719627045224,-172.17,0.00020548,2]
[330617695,1719627045234,-20058.25,0.00020548,2]
[330617696,1719627045243,-500.0,0.00020548,2]
[330617697,1719627045254,-500.0,0.00020548,2]
[330617698,1719627045263,-500.0,0.00020548,2]
[330617699,1719627045272,-500.0,0.00020548,2]
[330617700,1719627045282,-500.0,0.00020548,2]
[330617701,1719627045291,-500.0,0.00020548,2]
[330617702,1719627045304,-500.0,0.00020548,2]
[330617703,1719627045318,-500.0,0.00020548,2]
[330617704,1719627045328,-500.0,0.00020548,2]
[330617705,1719627045338,-500.0,0.00020548,2]
[330617706,1719627045347,-500.0,0.00020548,2]
[330617707,1719627045357,-500.0,0.00020548,2]
[330617708,1719627045367,-500.0,0.00020548,2]
[330617709,1719627045377,-500.0,0.00020548,2]
[330617710,1719627045386,-500.0,0.00020548,2]
[330617711,1719627045397,-500.0,0.00020548,2]
[330617712,1719627045411,-500.0,0.00020548,2]
[330617713,1719627045420,-500.0,0.00020548,2]
[330617714,1719627045430,-500.0,0.00020548,2]
[330617715,1719627045440,-500.0,0.00020548,2]
[330617716,1719627045450,-500.0,0.00020548,2]
[330617717,1719627045459,-500.0,0.00020548,2]
[330617718,1719627045469,-500.0,0.00020548,2]
[330617719,1719627045478,-500.0,0.00020548,2]
[330617720,1719627045488,-500.0,0.00020548,2]
[330617721,1719627045498,-500.0,0.00020548,2]
[330617722,1719627045507,-500.0,0.00020548,2]
[330617723,1719627045517,-500.0,0.00020548,2]
[330617724,1719627045527,-500.0,0.00020548,2]
[330617725,1719627045536,-500.0,0.00020548,2]
[330617726,1719627045546,-500.0,0.00020548,2]
[330617727,1719627045555,-500.0,0.00020548,2]
[330617728,1719627045564,-500.0,0.00020548,2]
[330617729,1719627045574,-500.0,0.00020548,2]
[330617730,1719627045584,-500.0,0.00020548,2]
[330617731,1719627045593,-500.0,0.00020548,2]
[330617732,1719627045603,-500.0,0.00020548,2]
[330617733,1719627045612,-500.0,0.00020548,2]
[330617734,1719627045621,-500.0,0.00020548,2]
[330617735,1719627045631,-500.0,0.00020548,2]
[330617736,1719627045640,-500.0,0.00020548,2]
[330617737,1719627045650,-500.0,0.00020548,2]
[330617738,1719627045661,-500.0,0.00020548,2]
[330617739,1719627045670,-500.0,0.00020548,2]
[330617740,1719627045680,-500.0,0.00020548,2]
[330617741,1719627045689,-500.0,0.00020548,2]
[330617742,1719627045699,-500.0,0.00020548,2]
[330617743,1719627045708,-500.0,0.00020548,2]
[330617744,1719627045718,-500.0,0.00020548,2]
[330617746,1719627045728,-500.0,0.00020548,2]
[330617747,1719627045737,-500.0,0.00020548,2]
[330617748,1719627045747,-500.0,0.00020548,2]
[330617749,1719627045756,-500.0,0.00020548,2]
[330617750,1719627045766,-500.0,0.00020548,2]
[330617751,1719627045775,-500.0,0.00020548,2]
[330617752,1719627045785,-500.0,0.00020548,2]
[330617753,1719627045795,-226.80456877,0.00020558,2]
[330617754,1719627045805,-150.0,0.00020571,2]
[330617755,1719627045815,-326.32719447,0.00020611,2]
[330617756,1719627045824,-150.0,0.00020612,2]
[330617757,1719627045834,-164.73,0.00020615,2]
[330617758,1719627045845,-150.0,0.00020615,2]
[330617759,1719627045854,-423.99,0.00020615,2]
[330617760,1719627045864,-354.56,0.00020615,2]
[330617761,1719627045876,-150.0,0.00020615,2]
[330617762,1719627045886,-164.73,0.00020615,2]
[330617763,1719627046243,-423.99,0.00020615,2]
[330617764,1719627046254,-150.0,0.00020615,2]
[330617765,1719627046263,-354.56,0.00020615,2]
[330617766,1719627046272,-150.0,0.00020615,2]
[330617767,1719627046282,-423.99,0.00020615,2]
[330617768,1719627046293,-164.73,0.00020615,2]
[330617769,1719627046304,-712.18,0.00020615,2]
[330617770,1719627046313,-150.0,0.00020615,2]
[330617771,1719627046322,-354.56,0.00020615,2]
[330617772,1719627046331,-359.29,0.00020615,2]
[330617773,1719627046341,-304.62,0.00020615,2]
[330617774,1719627046350,-354.56,0.00020615,2]
[330617775,1719627046360,-698.27,0.00020615,2]
[330617776,1719627046370,-424.06,0.00020615,2]
[330617777,1719627046380,-706.9,0.00020615,2]
[330617778,1719627046389,-847.98,0.00020615,2]
[330617779,1719627046398,-423.99,0.00020615,2]
[330617780,1719627046409,-380.22,0.00020615,2]
[330617781,1719627046418,-150.0,0.00020641,2]
[330617782,1719627046428,-317.35018931,0.00020643,2]
[330617783,1719627046437,-156.98542982,0.00020672,2]
[330617784,1719627046447,-150.0,0.00020691,2]
[330617785,1719627046456,-150.0,0.00020732,2]
[330617786,1719627046466,-150.0,0.00020747,2]
[330617787,1719627046476,-150.0,0.00020764,2]
[330617789,1719627046485,-1470.05197563,0.000208,2]
[330617790,1719627046494,-1000.0,0.000208,2]
[330617791,1719627046504,-150.0,0.00020811,2]
[330617792,1719627046513,-382.82,0.00020822,2]
[330617794,1719627046523,-1628.39165564,0.00020825,2]
[330617796,1719627046533,-7777.3305223,0.00020825,2]
[330617797,1719627046542,-150.0,0.00020828,2]
[330617798,1719627046552,-150.0,0.00020837,2]
[330617799,1719627046561,-150.0,0.00020872,2]
[330617800,1719627046571,-150.0,0.00020882,2]
[330617801,1719627046580,-150.0,0.00020882,2]
[330617802,1719627046590,-164.91172843,0.0002089,2]
[330617803,1719627046600,-150.0,0.00020899,2]
[330617804,1719627046610,-85034.18423387,0.000209,7]
[330617805,1719627046620,-152.24203,0.000209,2]
[330617806,1719627046631,-151.0,0.000209,2]
[330617807,1719627046642,-151.0,0.000209,2]
[330617808,1719627046652,-200.969817,0.000209,2]
[330617809,1719627046662,-151.0,0.000209,2]
[330617810,1719627046672,-151.0,0.000209,2]
[330617811,1719627046681,-151.551317,0.000209,2]
[330617812,1719627046690,-153.601156,0.000209,2]
[330617813,1719627046699,-151.450346,0.000209,2]
[330617814,1719627046709,-151.0,0.000209,2]
[330617815,1719627046718,-151.0,0.000209,2]
[330617816,1719627046727,-151.743611,0.000209,2]
[330617817,1719627046736,-151.0,0.000209,2]
[330617818,1719627046746,-158.515557,0.000209,2]
[330617819,1719627046756,-151.0,0.000209,2]
[330617820,1719627046765,-151.0,0.000209,2]
[330617821,1719627046775,-151.0,0.000209,2]
[330617822,1719627046784,-151.0,0.000209,2]
[330617823,1719627046794,-151.0,0.000209,2]
[330617824,1719627046803,-151.0,0.000209,2]
[330617825,1719627046812,-151.0,0.000209,2]
[330617826,1719627046822,-151.0,0.000209,2]
[330617827,1719627046831,-151.81477,0.000209,2]
[330617828,1719627046840,-151.173592,0.000209,2]
[330617829,1719627046850,-151.0,0.000209,2]
[330617830,1719627046860,-155.518144,0.000209,2]
[330617831,1719627046869,-152.186424,0.000209,2]
[330617832,1719627046878,-151.0,0.000209,2]
[330617833,1719627046888,-152.02897,0.000209,2]
[330617834,1719627046897,-151.0,0.000209,2]
[330617835,1719627046907,-151.0,0.000209,2]
[330617836,1719627046916,-151.0,0.000209,2]
[330617837,1719627046926,-151.0,0.000209,2]
[330617838,1719627046936,-151.0,0.000209,2]
[330617839,1719627046945,-151.0,0.000209,2]
[330617840,1719627046955,-151.0,0.000209,2]
[330617841,1719627046965,-151.0,0.000209,2]
[330617842,1719627046975,-151.0,0.000209,2]
[330617843,1719627046985,-151.0,0.000209,2]
[330617844,1719627046994,-151.0,0.000209,2]
[330617845,1719627047004,-154.252657,0.000209,2]
[330617846,1719627047013,-151.0,0.000209,2]
[330617847,1719627047023,-153.907769,0.000209,2]
[330617848,1719627047032,-718.493884,0.000209,2]
[330617849,1719627047042,-151.0,0.000209,2]
[330617850,1719627047051,-718.493884,0.000209,2]
[330617851,1719627047060,-151.0,0.000209,2]
[330617852,1719627047076,-152.388916,0.000209,2]
[330617853,1719627047085,-223.502016,0.000209,2]
[330617854,1719627047094,-223.502016,0.000209,2]
[330617855,1719627047104,-487.171688,0.000209,2]
[330617856,1719627047114,-487.171688,0.000209,2]
[330617857,1719627047123,-151.0,0.000209,2]
[330617858,1719627047135,-151.0,0.000209,2]